fUSD/lending_fUSD_20260630
["ID","MTS","AMOUNT","RATE_DAILY","PERIOD"]
[426757353,1782781845000,-275.0,0.00021,2]
[426757349,1782781845000,-6111.0,0.00021,2]
[426757351,1782781845000,-15000.0,0.00021,2]
[426757350,1782781845000,-11907.18143059,0.00021,2]
[426757357,1782781845000,-252.0,0.00021,2]
[426757352,1782781845000,-157.0,0.00021,2]
[426757354,1782781845000,-506.0,0.00021,2]
[426757348,1782781845000,-190.18706304,0.00021,2]
[426757356,1782781845000,-201.0,0.00021,2]
[426757355,1782781845000,-598.0,0.00021,2]
[426757358,1782781845000,-687.0,0.00021,2]
[426757366,1782781845000,-4021.18252922,0.000214,2]
[426757361,1782781845000,-190.18706304,0.000212,2]
[426757362,1782781845000,-4021.18252922,0.000212,2]
[426757360,1782781845000,-914.0,0.00021,2]
[426757363,1782781845000,-4884.5594202,0.00021273,2]
[426757364,1782781845000,-162.63,0.000213,2]
[426757365,1782781845000,-190.18706304,0.000214,2]
[426757368,1782781845000,-300.0,0.00021499,2]
[426757367,1782781845000,-172.43318396,0.000214,2]
[426757369,1782781845000,-300.0,0.00021499,2]
[426757370,1782781845000,-1495.24769793,0.000215,2]
[426757371,1782781845000,894.0,0.00014452,2]
[426757359,1782781845000,-171.0,0.00021,2]
[426757374,1782781846000,-431.07023608,0.000215,2]
[426757375,1782781846000,-444.03800456,0.000215,2]
[426757376,1782781847000,-5243.1003389,0.000215,2]
[426757389,1782781851000,1979.82740208,0.000149,2]
[426757390,1782781851000,894.0,0.00014452,2]
[426757391,1782781859000,1170.02765013,0.00011501,2]
[426757392,1782781867000,1000.0,0.000115,2]
[426757393,1782781885000,-161.72033039,0.00011501,2]
[426757394,1782781905000,-7770.93273901,0.00011501,2]
[426757395,1782781918000,-7770.93273901,0.00011501,2]
[426757400,1782781931000,500.0,0.000115,2]
[426757399,1782781931000,437.68437488,0.000115,2]
[426757398,1782781931000,150.0,0.000115,2]
[426757397,1782781931000,-4937.85505221,0.00011501,2]
[426757402,1782781945000,500.0,0.000115,2]
[426757401,1782781945000,-4937.85505221,0.00011501,2]
[426757403,1782781945000,500.0,0.000115,2]
[426757404,1782781945000,34.89762512,0.000115,2]
[426757405,1782781957000,-465.10237488,0.000115,2]
[426757407,1782782010000,-1245.08833965,0.00011401,2]
[426757410,1782782012000,172.529,0.00011271,2]
[426757411,1782782012000,953.32725477,0.00011271,2]
[426757408,1782782012000,-1507.21744523,0.00011401,2]
[426757409,1782782012000,-150.0,0.00011401,2]
[426757421,1782782170000,-250.0,0.00011015,2]
[426757419,1782782170000,-250.0,0.00010873,2]
[426757422,1782782170000,-2932.00746064,0.00011271,2]
[426757420,1782782170000,-150.0,0.00010907,2]
[426757417,1782782170000,-422.25664751,0.00010701,2]
[426757418,1782782170000,-776.23783829,0.00010701,2]
[426757415,1782782170000,-444.11405356,0.00010471,2]
[426757416,1782782170000,-250.0,0.00010586,2]
[426757426,1782782630000,-169.95654851,0.00010701,2]
[426757427,1782782631000,-250.0,0.00010819,2]
[426757428,1782782631000,-150.0,0.00011048,2]
[426757429,1782782631000,-420.42071894,0.00011145,2]
[426757436,1782782668000,-160.0,0.00011171,2]
[426757438,1782782668000,-218.75814337,0.00011271,2]
[426757437,1782782668000,-166.66,0.00011204,2]
[426757435,1782782668000,-289.89370869,0.00011171,2]
[426757434,1782782668000,-282.0,0.00011158,2]
[426757432,1782782668000,-1431.99928106,0.00011145,2]
[426757431,1782782668000,-166.66,0.00011081,2]
[426757430,1782782668000,-166.66,0.00010959,2]
[426757439,1782782668000,-113.91886688,0.00011301,2]
[426757433,1782782668000,-1003.45,0.00011145,2]
[426757441,1782782778000,-92.34236044,0.00011001,2]
[426757442,1782782786000,-20990.16946641,0.00011001,2]
[426757443,1782782831000,375.58523109,0.00010637,2]
[426757444,1782782831000,124.41476891,0.00010637,2]
[426757445,1782782832000,150.0,0.00010671,2]
[426757447,1782782907000,71.67953782,8.454e-05,2]
[426757446,1782782907000,101.17046218,8.454e-05,2]
[426757448,1782782945000,-150.0,0.00010959,2]
[426757449,1782782945000,-195.83817315,0.00011001,2]
[426757451,1782782945000,-150.0,0.00011121,2]
[426757450,1782782945000,-160.0,0.00011023,2]
[426757452,1782782945000,-181.44649213,0.00011151,2]
[426757453,1782782945000,-150.0,0.00011231,2]
[426757460,1782782945000,-1113.96903444,0.00011348,2]
[426757455,1782782945000,-193.26247245,0.00011297,2]
[426757456,1782782945000,-85.59033051,0.00011301,2]
[426757457,1782782945000,-193.26247245,0.00011323,2]
[426757458,1782782945000,-2477.07520641,0.00011323,2]
[426757459,1782782945000,-166.66,0.00011326,2]
[426757454,1782782945000,-193.26247246,0.0001127,2]
[426757463,1782783012000,-150.0,0.000114,2]
[426757462,1782783012000,-176.18517276,0.00011374,2]
[426757461,1782783012000,-229.08096556,0.00011348,2]
[426757464,1782783018000,179.46986352,0.00011301,2]
[426757480,1782783032000,-500.0,0.000114,2]
[426757481,1782783032000,-500.0,0.000114,2]
[426757477,1782783032000,-500.0,0.000114,2]
[426757475,1782783032000,-500.0,0.000114,2]
[426757474,1782783032000,-500.0,0.000114,2]
[426757476,1782783032000,-500.0,0.000114,2]
[426757479,1782783032000,-500.0,0.000114,2]
[426757473,1782783032000,-500.0,0.000114,2]
[426757468,1782783032000,-500.0,0.000114,2]
[426757471,1782783032000,-500.0,0.000114,2]
[426757469,1782783032000,-500.0,0.000114,2]
[426757470,1782783032000,-500.0,0.000114,2]
[426757465,1782783032000,-291.32334823,0.000114,2]
[426757467,1782783032000,-290.72576574,0.000114,2]
[426757466,1782783032000,-208.67665177,0.000114,2]
[426757478,1782783032000,-500.0,0.000114,2]
[426757472,1782783032000,-500.0,0.000114,2]
[426757483,1782783032000,-500.0,0.000114,2]
[426757485,1782783032000,-500.0,0.000114,2]
[426757484,1782783032000,-500.0,0.000114,2]
[426757499,1782783032000,-500.0,0.000114,2]
[426757497,1782783032000,-500.0,0.000114,2]
[426757498,1782783032000,-500.0,0.000114,2]
[426757495,1782783032000,-500.0,0.000114,2]
[426757496,1782783032000,-500.0,0.000114,2]
[426757491,1782783032000,-500.0,0.000114,2]
[426757490,1782783032000,-500.0,0.000114,2]
[426757501,1782783032000,-500.0,0.000114,2]
[426757493,1782783032000,-500.0,0.000114,2]
[426757489,1782783032000,-500.0,0.000114,2]
[426757500,1782783032000,-500.0,0.000114,2]
[426757486,1782783032000,-500.0,0.000114,2]
[426757482,1782783032000,-500.0,0.000114,2]
[426757488,1782783032000,-500.0,0.000114,2]
[426757492,1782783032000,-500.0,0.000114,2]
[426757494,1782783032000,-500.0,0.000114,2]
[426757487,1782783032000,-500.0,0.000114,2]
[426757517,1782783033000,-955.37408932,0.000114,2]
[426757515,1782783033000,-483.88713542,0.000114,2]
[426757514,1782783033000,-500.0,0.000114,2]
[426757512,1782783033000,-500.0,0.000114,2]
[426757513,1782783033000,-500.0,0.000114,2]
[426757510,1782783033000,-500.0,0.000114,2]
[426757508,1782783033000,-500.0,0.000114,2]
[426757507,1782783033000,-500.0,0.000114,2]
[426757511,1782783033000,-500.0,0.000114,2]
[426757504,1782783033000,-500.0,0.000114,2]
[426757506,1782783033000,-500.0,0.000114,2]
[426757503,1782783033000,-500.0,0.000114,2]
[426757502,1782783033000,-500.0,0.000114,2]
[426757516,1782783033000,-955.37408932,0.000114,2]
[426757509,1782783033000,-500.0,0.000114,2]
[426757505,1782783033000,-500.0,0.000114,2]
[426757520,1782783033000,-955.37408932,0.000114,2]
[426757519,1782783033000,-955.37408932,0.000114,2]
[426757518,1782783033000,-955.37408932,0.000114,2]
[426757534,1782783033000,-15625.20272435,0.00011401,2]
[426757533,1782783033000,-292358.63674585,0.00011401,2]
[426757531,1782783033000,-955.37408932,0.000114,2]
[426757529,1782783033000,-955.37408932,0.000114,2]
[426757528,1782783033000,-955.37408932,0.000114,2]
[426757527,1782783033000,-955.37408932,0.000114,2]
[426757535,1782783033000,-791.99132632,0.00011401,2]
[426757530,1782783033000,-955.37408932,0.000114,2]
[426757525,1782783033000,-955.37408932,0.000114,2]
[426757526,1782783033000,-955.37408932,0.000114,2]
[426757521,1782783033000,-955.37408932,0.000114,2]
[426757524,1782783033000,-955.37408932,0.000114,2]
[426757523,1782783033000,-955.37408932,0.000114,2]
[426757522,1782783033000,-955.37408932,0.000114,2]
[426757532,1782783033000,-955.37408932,0.000114,2]
[426757536,1782783036000,-500.0,0.000114,2]
[426757537,1782783036000,-265.26399816,0.000114,2]
[426757541,1782783038000,-500.0,0.000114,2]
[426757540,1782783038000,-228.35046929,0.000114,2]
[426757542,1782783038000,-500.0,0.000114,2]
[426757545,1782783038000,-359.70447977,0.00011401,2]
[426757544,1782783038000,-2552.24222887,0.00011401,2]
[426757546,1782783038000,-837.57754225,0.00011401,2]
[426757543,1782783038000,-2769.5903114,0.00011401,2]
[426757554,1782783039000,-626.46848413,0.00011401,2]
[426757553,1782783039000,-1912.71394457,0.00011401,2]
[426757547,1782783039000,-1919.28833965,0.00011401,2]
[426757548,1782783039000,-7770.93273901,0.00011401,2]
[426757733,1782783040000,-206.25,0.00011452,2]
[426757729,1782783040000,-1003.45,0.00011423,2]
[426757731,1782783040000,-166.66,0.00011449,2]
[426757722,1782783040000,-1172475.65113383,0.00011401,2]
[426757726,1782783040000,-216.58458871,0.00011404,2]
[426757746,1782783040000,-500.0,0.00011494,2]
[426757724,1782783040000,-304.0,0.00011401,2]
[426757748,1782783040000,-338.54988273,0.00011494,2]
[426757735,1782783040000,-1707.67157115,0.00011471,2]
[426757750,1782783040000,-500.0,0.00011496,2]
[426757739,1782783040000,-4870.012,0.00011491,2]
[426757744,1782783040000,-500.0,0.00011494,2]
[426757752,1782783040000,-500.0,0.00011496,2]
[426757742,1782783040000,-172.529,0.00011491,2]
[426757737,1782783040000,-347.51444905,0.00011481,2]
[426757848,1782783041000,-500.0,0.00013698,2]
[426757852,1782783041000,-500.0,0.00013698,2]
[426757844,1782783041000,-500.0,0.00013698,2]
[426757838,1782783041000,-182.48,0.00013494,2]
[426757836,1782783041000,-1707.67157113,0.00013163,2]
[426757826,1782783041000,-9999.99,0.00012893,2]
[426757832,1782783041000,-910.84,0.00012927,2]
[426757828,1782783041000,-500.0,0.00012893,2]
[426757850,1782783041000,-500.0,0.00013698,2]
[426757823,1782783041000,-7720.59,0.00012893,2]
[426757821,1782783041000,-4999.99,0.00012893,2]
[426757834,1782783041000,-594.08,0.00013151,2]
[426757840,1782783041000,-433.0,0.00013623,2]
[426757854,1782783041000,-500.0,0.00013698,2]
[426757842,1782783041000,-500.0,0.00013698,2]
[426757857,1782783041000,-500.0,0.00013698,2]
[426757819,1782783041000,-9999.99,0.00012893,2]
[426757859,1782783041000,-500.0,0.00013698,2]
[426757861,1782783041000,-500.0,0.00013698,2]
[426757863,1782783041000,-500.0,0.00013698,2]
[426757869,1782783041000,-500.0,0.00013698,2]
[426757867,1782783041000,-500.0,0.00013698,2]
[426757865,1782783041000,-500.0,0.00013698,2]
[426757873,1782783041000,-500.0,0.00013698,2]
[426757874,1782783041000,-500.0,0.00013698,2]
[426757871,1782783041000,-500.0,0.00013698,2]
[426757877,1782783041000,-500.0,0.00013698,2]
[426757846,1782783041000,-500.0,0.00013698,2]
[426757811,1782783041000,-800.98,0.00012893,2]
[426757806,1782783041000,-5192.45,0.00012893,2]
[426757817,1782783041000,-372.64,0.00012893,2]
[426757754,1782783041000,-422.26174878,0.00011496,2]
[426757759,1782783041000,-500.0,0.00011496,2]
[426757757,1782783041000,-500.0,0.00011496,2]
[426757764,1782783041000,-200.0,0.00011575,2]
[426757766,1782783041000,-160.0,0.00011689,2]
[426757772,1782783041000,-150.0,0.00011969,2]
[426757768,1782783041000,-1003.45,0.00011702,2]
[426757761,1782783041000,-166.66,0.00011571,2]
[426757774,1782783041000,-1003.45,0.0001198,2]
[426757770,1782783041000,-823.75,0.00011838,2]
[426757778,1782783041000,-250.0,0.00012055,2]
[426757782,1782783041000,-19999.99,0.00012087,2]
[426757776,1782783041000,-250.0,0.00012055,2]
[426757780,1782783041000,-6782.63,0.00012087,2]
[426757785,1782783041000,-9999.99,0.00012087,2]
[426757796,1782783041000,-24693.3527412,0.00012429,2]
[426757798,1782783041000,-255.0,0.0001246,2]
[426757800,1782783041000,-250.0,0.00012482,2]
[426757787,1782783041000,-182.48,0.00012145,2]
[426757794,1782783041000,-208.57,0.00012329,2]
[426757789,1782783041000,-1003.45,0.00012259,2]
[426757792,1782783041000,-2887.54,0.00012305,2]
[426757802,1782783041000,-3157.55,0.00012675,2]
[426757804,1782783041000,-182.48,0.00012819,2]
[426757809,1782783041000,-150.99,0.00012893,2]
[426757878,1782783041000,-500.0,0.00013698,2]
[426757815,1782783041000,-5266.14,0.00012893,2]
[426757813,1782783041000,-299.99,0.00012893,2]
[426757875,1782783041000,-500.0,0.00013698,2]
[426757830,1782783041000,-2477.07520634,0.0001292,2]
[426757882,1782783041000,-500.0,0.00013698,2]
[426757936,1782783041000,-910.84,0.00014542,2]
[426757932,1782783041000,-500.0,0.00014178,2]
[426757935,1782783041000,-2477.07520634,0.00014518,2]
[426757941,1782783041000,-1707.67157113,0.00014855,2]
[426757946,1782783041000,-500.0,0.00014999,2]
[426757945,1782783041000,-736.0,0.00014889,2]
[426757943,1782783041000,-266.49,0.00014868,2]
[426757948,1782783041000,-500.0,0.00014999,2]
[426757950,1782783041000,-500.0,0.00014999,2]
[426757951,1782783041000,-500.0,0.00014999,2]
[426757955,1782783041000,-500.0,0.00014999,2]
[426757953,1782783041000,-500.0,0.00014999,2]
[426757956,1782783041000,-500.0,0.00014999,2]
[426757938,1782783041000,-342.10101196,0.00014801,2]
[426757958,1782783041000,-500.0,0.00014999,2]
[426757961,1782783041000,-500.0,0.00014999,2]
[426757965,1782783041000,-500.0,0.00014999,2]
[426757963,1782783041000,-500.0,0.00014999,2]
[426757966,1782783041000,-500.0,0.00014999,2]
[426757978,1782783041000,-1897.41285681,0.00016167,2]
[426757980,1782783041000,-182.48,0.00016193,2]
[426757982,1782783041000,-1252.0,0.00016268,2]
[426757968,1782783041000,-505.0,0.00015,2]
[426757969,1782783041000,-500.0,0.00015091,2]
[426757971,1782783041000,-182.48,0.00015518,2]
[426757880,1782783041000,-500.0,0.00013698,2]
[426757972,1782783041000,-505.0,0.00015823,2]
[426757974,1782783041000,-2477.07520634,0.00016115,2]
[426757960,1782783041000,-500.0,0.00014999,2]
[426757934,1782783041000,-621.9477131,0.00014178,2]
[426757976,1782783041000,-910.84,0.00016158,2]
[426757930,1782783041000,-182.48,0.00014169,2]
[426757883,1782783041000,-500.0,0.00013698,2]
[426757940,1782783041000,-182.48,0.00014844,2]
[426757887,1782783041000,-500.0,0.00013698,2]
[426757897,1782783041000,-500.0,0.00013698,2]
[426757898,1782783041000,-500.0,0.00013698,2]
[426757888,1782783041000,-500.0,0.00013698,2]
[426757890,1782783041000,-500.0,0.00013698,2]
[426757892,1782783041000,-500.0,0.00013698,2]
[426757895,1782783041000,-500.0,0.00013698,2]
[426757893,1782783041000,-500.0,0.00013698,2]
[426757900,1782783041000,-488.91218932,0.00013698,2]
[426757902,1782783041000,-500.0,0.00013698,2]
[426757904,1782783041000,-500.0,0.00013698,2]
[426757905,1782783041000,-500.0,0.00013698,2]
[426757885,1782783041000,-500.0,0.00013698,2]
[426757919,1782783041000,-500.0,0.00013698,2]
[426757909,1782783041000,-500.0,0.00013698,2]
[426757916,1782783041000,-500.0,0.00013698,2]
[426757910,1782783041000,-500.0,0.00013698,2]
[426757914,1782783041000,-500.0,0.00013698,2]
[426757917,1782783041000,-500.0,0.00013698,2]
[426757912,1782783041000,-500.0,0.00013698,2]
[426757921,1782783041000,-500.0,0.00013698,2]
[426757928,1782783041000,-172.68,0.00014063,2]
[426757926,1782783041000,-200.0,0.00013699,2]
[426757922,1782783041000,-500.0,0.00013698,2]
[426757924,1782783041000,-606.76,0.00013699,2]
[426757907,1782783041000,-500.0,0.00013698,2]
[426758062,1782783042000,-1090.28094012,0.00019368,7]
[426758064,1782783042000,-910.84,0.0001939,2]
[426758075,1782783042000,-1222.52679181,0.000198,2]
[426758060,1782783042000,-2477.07520634,0.0001931,2]
[426758049,1782783042000,-192.08612594,0.00019,2]
[426758056,1782783042000,-505.0,0.00019114,5]
[426758047,1782783042000,-1090.28094012,0.0001883,7]
[426758051,1782783042000,-1222.52679181,0.00019,2]
[426758053,1782783042000,-162.09,0.0001909,2]
[426758058,1782783042000,-1222.52679181,0.000192,2]
[426758073,1782783042000,-251.3659268,0.00019723,2]
[426758081,1782783042000,-1707.67157113,0.00019932,2]
[426758066,1782783042000,-1222.52679181,0.000194,2]
[426758069,1782783042000,-905.0,0.00019437,2]
[426758071,1782783042000,-1222.52679181,0.000196,2]
[426758079,1782783042000,-200.0,0.0001984,2]
[426758085,1782783042000,-171.0,0.0002,2]
[426758083,1782783042000,-505.0,0.00019937,6]
[426758089,1782783042000,-170.0,0.0002,2]
[426758093,1782783042000,-480.0,0.0002,2]
[426758091,1782783042000,-206.0,0.0002,2]
[426758095,1782783042000,-568.0,0.0002,2]
[426758087,1782783042000,-1222.52679181,0.0002,2]
[426758042,1782783042000,-192.08612594,0.000188,2]
[426758097,1782783042000,-190.0,0.0002,2]
[426758077,1782783042000,-162.09,0.00019817,2]
[426758045,1782783042000,-1222.52679181,0.000188,2]
[426758026,1782783042000,-182.48,0.00018217,2]
[426758038,1782783042000,-4757.95,0.0001872,2]
[426758101,1782783042000,-653.0,0.0002,2]
[426757984,1782783042000,-234.32627977,0.00016374,2]
[426757986,1782783042000,-1707.67157113,0.00016547,2]
[426757989,1782783042000,-505.0,0.00016646,3]
[426757993,1782783042000,-170.42,0.00017073,2]
[426757991,1782783042000,-182.48,0.00016868,2]
[426757999,1782783042000,-505.0,0.00017468,4]
[426757997,1782783042000,-2887.54,0.00017226,2]
[426757995,1782783042000,-159.88,0.00017098,2]
[426758003,1782783042000,-182.48,0.00017542,2]
[426758005,1782783042000,-172.68,0.00017579,2]
[426758007,1782783042000,-162.09,0.00017634,2]
[426758040,1782783042000,-275.47,0.0001872,2]
[426758008,1782783042000,-198.36,0.00017645,2]
[426758010,1782783042000,-187.54,0.00017645,2]
[426758028,1782783042000,-1707.67157113,0.00018239,2]
[426758016,1782783042000,-2129.0,0.00017784,2]
[426758014,1782783042000,-910.84,0.00017774,2]
[426758018,1782783042000,-501.96465776,0.00017897,2]
[426758022,1782783042000,-1067.54,0.00018016,2]
[426758024,1782783042000,-272.35824239,0.000181,10]
[426758020,1782783042000,-1090.28094013,0.00017933,7]
[426758030,1782783042000,-505.0,0.00018291,4]
[426758032,1782783042000,-1090.28094012,0.00018292,7]
[426758036,1782783042000,-247.79,0.0001872,2]
[426758034,1782783042000,-162.09,0.00018362,2]
[426758012,1782783042000,-2477.07520634,0.00017713,2]
[426758103,1782783042000,-822.0,0.0002,2]
[426758180,1782783042000,-568.0,0.00021,2]
[426758105,1782783042000,-151.0,0.0002,2]
[426758171,1782783042000,-190.18706304,0.00021,2]
[426758173,1782783042000,-206.0,0.00021,2]
[426758168,1782783042000,-171.0,0.00021,2]
[426758175,1782783042000,-246.68958447,0.00021,2]
[426758177,1782783042000,-480.0,0.00021,2]
[426758184,1782783042000,-239.0,0.00021,2]
[426758186,1782783042000,-653.0,0.00021,2]
[426758182,1782783042000,-190.0,0.00021,2]
[426758188,1782783042000,-4897.56313,0.00021033,2]
[426758190,1782783042000,-172.68,0.00021094,2]
[426758194,1782783042000,-500.0,0.00021199,2]
[426758192,1782783042000,-169.8925337,0.00021193,2]
[426758202,1782783042000,-1372.08,0.00021273,2]
[426758196,1782783042000,-500.0,0.00021199,2]
[426758204,1782783042000,-23427.88,0.00021273,2]
[426758200,1782783042000,-190.18706304,0.000212,2]
[426758198,1782783042000,-500.0,0.00021199,2]
[426758206,1782783042000,-169.8925337,0.00021295,2]
[426758212,1782783042000,-169.8925337,0.00021398,2]
[426758208,1782783042000,-170.42,0.00021341,2]
[426758210,1782783042000,-292.46738677,0.00021374,2]
[426758214,1782783042000,-679.5030724,0.00021479,2]
[426758217,1782783042000,-51087.54678056,0.000215,2]
[426758219,1782783042000,-226.58397681,0.000215,2]
[426758099,1782783042000,-239.0,0.0002,2]
[426758164,1782783042000,-505.0,0.00020759,7]
[426758166,1782783042000,-2477.07520634,0.00020908,2]
[426758220,1782783042000,-200.0,0.000215,2]
[426758156,1782783042000,-500.0,0.00020659,2]
[426758162,1782783042000,-897.5439,0.00020723,7]
[426758111,1782783042000,-151.0,0.0002,2]
[426758109,1782783042000,-151.0,0.0002,2]
[426758116,1782783042000,-151.0,0.0002,2]
[426758114,1782783042000,-151.0,0.0002,2]
[426758119,1782783042000,-151.0,0.0002,2]
[426758123,1782783042000,-151.0,0.0002,2]
[426758125,1782783042000,-151.0,0.0002,2]
[426758118,1782783042000,-151.0,0.0002,2]
[426758121,1782783042000,-151.0,0.0002,2]
[426758129,1782783042000,-151.0,0.0002,2]
[426758127,1782783042000,-151.0,0.0002,2]
[426758131,1782783042000,-196.40126515,0.0002,2]
[426758107,1782783042000,-151.0,0.0002,2]
[426758135,1782783042000,-915.0,0.000202,2]
[426758133,1782783042000,-1090.28094015,0.00020085,7]
[426758160,1782783042000,-500.0,0.00020685,2]
[426758146,1782783042000,-1222.52679181,0.000204,2]
[426758148,1782783042000,-500.0,0.00020466,2]
[426758144,1782783042000,-663.35865782,0.00020223,7]
[426758158,1782783042000,-178.39635728,0.00020659,2]
[426758150,1782783042000,-162.09,0.00020545,2]
[426758154,1782783042000,-1222.52679181,0.000206,2]
[426758152,1782783042000,-591.24105975,0.0002058,7]
[426758139,1782783042000,-1222.52679181,0.000202,2]
[426758137,1782783042000,-907.0,0.000202,2]
[426758142,1782783042000,-443.43929023,0.00020223,7]
[426758313,1782783043000,-206.0,0.00023,2]
[426758317,1782783043000,-568.0,0.00023,2]
[426758311,1782783043000,-914.0,0.00023,2]
[426758315,1782783043000,-480.0,0.00023,2]
[426758299,1782783043000,-36245.82527023,0.000225,2]
[426758301,1782783043000,-2477.07520634,0.00022505,2]
[426758296,1782783043000,-700.69,0.00022466,2]
[426758287,1782783043000,-467.14,0.00022466,2]
[426758304,1782783043000,-534.37131346,0.0002271,2]
[426758306,1782783043000,-500.0,0.0002274,2]
[426758283,1782783043000,-320.0,0.00022359,2]
[426758323,1782783043000,-653.0,0.00023,2]
[426758310,1782783043000,-171.0,0.00023,2]
[426758312,1782783043000,-171.0,0.00023,2]
[426758320,1782783043000,-190.0,0.00023,2]
[426758322,1782783043000,-239.0,0.00023,2]
[426758325,1782783043000,-320.0,0.00023044,2]
[426758324,1782783043000,-150.0,0.00023014,2]
[426758326,1782783043000,-500.0,0.00023123,2]
[426758327,1782783043000,-501.21584052,0.000232,2]
[426758330,1782783043000,-150.0,0.00023288,2]
[426758328,1782783043000,-505.0,0.00023228,9]
[426758329,1782783043000,-150.0,0.00023288,2]
[426758285,1782783043000,-505.0,0.00022405,8]
[426758308,1782783043000,-14434.32,0.00022994,2]
[426758289,1782783043000,-287.11,0.00022466,2]
[426758257,1782783043000,-171.0,0.00022,2]
[426758294,1782783043000,-1666.23,0.00022466,2]
[426758229,1782783043000,-559.59648434,0.000215,2]
[426758231,1782783043000,-200.0,0.000215,2]
[426758234,1782783043000,-505.0,0.00021582,7]
[426758244,1782783043000,-500.0,0.00021917,2]
[426758247,1782783043000,-5000.0,0.00021918,2]
[426758249,1782783043000,-150.0,0.00021918,2]
[426758236,1782783043000,-1707.67157113,0.00021624,2]
[426758240,1782783043000,-562.0,0.000219,7]
[426758238,1782783043000,-200.0,0.00021715,2]
[426758242,1782783043000,-500.0,0.00021917,2]
[426758251,1782783043000,-200.0,0.00021932,2]
[426758282,1782783043000,-150.00000001,0.00022302,2]
[426758253,1782783043000,-2216.06705773,0.00022,2]
[426758260,1782783043000,-914.0,0.00022,2]
[426758262,1782783043000,-171.0,0.00022,2]
[426758266,1782783043000,-480.0,0.00022,2]
[426758264,1782783043000,-206.0,0.00022,2]
[426758271,1782783043000,-190.0,0.00022,2]
[426758273,1782783043000,-239.0,0.00022,2]
[426758269,1782783043000,-568.0,0.00022,2]
[426758275,1782783043000,-653.0,0.00022,2]
[426758278,1782783043000,-571.9,0.00022,2]
[426758280,1782783043000,-245.25568359,0.0002211,2]
[426758292,1782783043000,-430.65,0.00022466,2]
[426758255,1782783043000,-300.0,0.00022,2]
[426758331,1782783043000,-150.0,0.00023288,2]
[426758339,1782783043000,-150.0,0.00023288,2]
[426758334,1782783043000,-150.0,0.00023288,2]
[426758367,1782783043000,-182.62334235,0.00023622,2]
[426758368,1782783043000,-187.93681228,0.00023622,2]
[426758366,1782783043000,-156.69209207,0.00023622,2]
[426758369,1782783043000,-152.93317974,0.00023631,2]
[426758370,1782783043000,-161.79286925,0.00023631,2]
[426758371,1782783043000,-202.26807697,0.00023631,2]
[426758372,1782783043000,-197.22258442,0.00023631,2]
[426758373,1782783043000,-180.39720908,0.00023631,2]
[426758374,1782783043000,-185.01771763,0.00023631,2]
[426758379,1782783043000,-200.0,0.00023787,2]
[426758375,1782783043000,-165.04198848,0.00023631,2]
[426758365,1782783043000,-161.73271233,0.00023622,2]
[426758378,1782783043000,-320.0,0.00023729,2]
[426758376,1782783043000,-150.12736633,0.00023631,2]